[Event "Titled Tuesday Blitz May 31 Late 2022"]
[White "Przybylski, Wojciech"]
[Black "Rosen, Eric"]
[WhiteFideId "1117599"]
[BlackFideId "2032562"]
[WhiteElo "2133"]
[BlackElo "2362"]
[Result "1-0"]
[Round "10"]
[TimeControl "180+1"]
[Date "2022.05.31"]
[WhiteClock "0:00:34"]
[BlackClock "0:00:01"]

1. e4 {[%clk 0:03:00]}  e5 {[%clk 0:02:55]} 2. Nf3 {[%clk 0:03:00]}  Nf6 {[%clk 0:02:55]} 3. Nxe5 {[%clk 0:02:58]}  Nc6 {[%clk 0:02:55]} 4. Nf3 {[%clk 0:02:56]}  Nxe4 {[%clk 0:02:55]} 5. Nc3 {[%clk 0:02:56]}  d5 {[%clk 0:02:54]} 6. Bb5 {[%clk 0:02:54]}  Bg4 {[%clk 0:02:50]} 7. h3 {[%clk 0:02:53]}  Bh5 {[%clk 0:02:50]} 8. O-O {[%clk 0:02:52]}  Be7 {[%clk 0:02:49]} 9. d3 {[%clk 0:02:52]}  Nxc3 {[%clk 0:02:43]} 10. bxc3 {[%clk 0:02:51]}  O-O {[%clk 0:02:43]} 11. Bxc6 {[%clk 0:02:49]}  bxc6 {[%clk 0:02:43]} 12. Re1 {[%clk 0:02:49]}  Bd6 {[%clk 0:02:36]} 13. Re3 {[%clk 0:02:41]}  Qf6 {[%clk 0:02:29]} 14. d4 {[%clk 0:02:30]}  Rfe8 {[%clk 0:02:29]} 15. Rxe8+ {[%clk 0:02:28]}  Rxe8 {[%clk 0:02:30]} 16. Be3 {[%clk 0:02:28]}  Bxf3 {[%clk 0:02:14]} 17. Qxf3 {[%clk 0:02:27]}  Qxf3 {[%clk 0:02:15]} 18. gxf3 {[%clk 0:02:27]}  Rb8 {[%clk 0:02:16]} 19. Bc1 {[%clk 0:02:25]}  f6 {[%clk 0:01:58]} 20. Kf1 {[%clk 0:02:24]}  Kf7 {[%clk 0:01:56]} 21. Ke2 {[%clk 0:02:24]}  Re8+ {[%clk 0:01:55]} 22. Be3 {[%clk 0:02:23]}  Rb8 {[%clk 0:01:54]} 23. Kd3 {[%clk 0:02:23]}  Ke6 {[%clk 0:01:29]} 24. c4 {[%clk 0:02:22]}  f5 {[%clk 0:01:12]} 25. c5 {[%clk 0:02:19]}  Be7 {[%clk 0:01:10]} 26. Bf4 {[%clk 0:02:19]}  Kd7 {[%clk 0:01:10]} 27. Be5 {[%clk 0:02:13]}  g6 {[%clk 0:01:10]} 28. f4 {[%clk 0:02:12]}  Bd8 {[%clk 0:00:55]} 29. a4 {[%clk 0:02:05]}  Kc8 {[%clk 0:00:52]} 30. a5 {[%clk 0:02:04]}  a6 {[%clk 0:00:47]} 31. Kd2 {[%clk 0:01:54]}  Rb5 {[%clk 0:00:46]} 32. Kc1 {[%clk 0:01:52]}  Kd7 {[%clk 0:00:45]} 33. c3 {[%clk 0:01:52]}  Bh4 {[%clk 0:00:45]} 34. f3 {[%clk 0:01:51]}  Rb7 {[%clk 0:00:35]} 35. Kc2 {[%clk 0:01:51]}  Ke6 {[%clk 0:00:33]} 36. Ra4 {[%clk 0:01:45]}  Bd8 {[%clk 0:00:30]} 37. Ra1 {[%clk 0:01:42]}  Kf7 {[%clk 0:00:29]} 38. Ra3 {[%clk 0:01:30]}  Rb5 {[%clk 0:00:29]} 39. c4 {[%clk 0:01:24]}  dxc4 {[%clk 0:00:26]} 40. Kc3 {[%clk 0:01:25]}  Rb1 {[%clk 0:00:08]} 41. Kxc4 {[%clk 0:01:25]}  Rc1+ {[%clk 0:00:09]} 42. Kd3 {[%clk 0:01:25]}  Rb1 {[%clk 0:00:07]} 43. Kc2 {[%clk 0:01:24]}  Rb5 {[%clk 0:00:07]} 44. Kc3 {[%clk 0:01:24]}  Ke6 {[%clk 0:00:07]} 45. Kc4 {[%clk 0:01:24]}  Rb1 {[%clk 0:00:08]} 46. Re3 {[%clk 0:01:18]}  Rc1+ {[%clk 0:00:08]} 47. Kb3 {[%clk 0:01:16]}  Kd7 {[%clk 0:00:07]} 48. Kb2 {[%clk 0:01:15]}  Rh1 {[%clk 0:00:07]} 49. Rb3 {[%clk 0:01:11]}  Rh2+ {[%clk 0:00:05]} 50. Kc3 {[%clk 0:01:10]}  Rxh3 {[%clk 0:00:05]} 51. Kd2 {[%clk 0:01:10]}  Rh2+ {[%clk 0:00:05]} 52. Ke3 {[%clk 0:01:11]}  Ra2 {[%clk 0:00:05]} 53. Rb1 {[%clk 0:01:04]}  Ra3+ {[%clk 0:00:05]} 54. Kf2 {[%clk 0:01:03]}  Rxa5 {[%clk 0:00:04]} 55. Rh1 {[%clk 0:01:03]}  Ra2+ {[%clk 0:00:03]} 56. Ke3 {[%clk 0:01:01]}  h5 {[%clk 0:00:03]} 57. Rg1 {[%clk 0:01:02]}  h4 {[%clk 0:00:03]} 58. Rxg6 {[%clk 0:01:02]}  h3 {[%clk 0:00:03]} 59. Rg7+ {[%clk 0:00:59]}  Kc8 {[%clk 0:00:04]} 60. Rg8 {[%clk 0:00:58]}  h2 {[%clk 0:00:04]} 61. Rh8 {[%clk 0:00:58]}  Kb7 {[%clk 0:00:04]} 62. Kd3 {[%clk 0:00:52]}  a5 {[%clk 0:00:05]} 63. Kc4 {[%clk 0:00:52]}  Rf2 {[%clk 0:00:04]} 64. d5 {[%clk 0:00:47]}  cxd5+ {[%clk 0:00:04]} 65. Kxd5 {[%clk 0:00:47]}  c6+ {[%clk 0:00:05]} 66. Ke6 {[%clk 0:00:48]}  Ka6 {[%clk 0:00:03]} 67. Kd7 {[%clk 0:00:44]}  Rd2+ {[%clk 0:00:04]} 68. Kxc6 {[%clk 0:00:44]}  a4 {[%clk 0:00:03]} 69. Bc3 {[%clk 0:00:39]}  Rd3 {[%clk 0:00:03]} 70. Be5 {[%clk 0:00:38]}  Rd2 {[%clk 0:00:03]} 71. Bd6 {[%clk 0:00:37]}  a3 {[%clk 0:00:03]} 72. Rxd8 {[%clk 0:00:36]}  Ka7 {[%clk 0:00:01]} 73. Rh8 {[%clk 0:00:35]}  a2 {[%clk 0:00:01]} 74. Bb8+ {[%clk 0:00:35]}  Ka8 {[%clk 0:00:01]} 75. Be5+ {[%clk 0:00:35]}  Ka7 {[%clk 0:00:02]} 76. Kb5 {[%clk 0:00:34]}  Rc2 {[%clk 0:00:01]} 77. c6 {[%clk 0:00:34]} 1-0


[Site "https://www.chess.com"]

[Event "Titled Tuesday Blitz May 31 Late 2022"]
[White "Sjugirov, Sanan"]
[Black "Wieczorek, Oskar"]
[WhiteFideId "4189302"]
[BlackFideId "1133950"]
[WhiteElo "2602"]
[BlackElo "2330"]
[Result "1-0"]
[Round "10"]
[TimeControl "180+1"]
[Date "2022.05.31"]
[WhiteClock "0:00:08"]
[BlackClock "0:00:05"]

1. e4 {[%clk 0:03:00]}  c5 {[%clk 0:02:57]} 2. Nf3 {[%clk 0:03:00]}  e6 {[%clk 0:02:58]} 3. d4 {[%clk 0:02:59]}  cxd4 {[%clk 0:02:59]} 4. Nxd4 {[%clk 0:03:00]}  Nf6 {[%clk 0:02:59]} 5. Nc3 {[%clk 0:03:00]}  d6 {[%clk 0:03:00]} 6. g4 {[%clk 0:03:00]}  e5 {[%clk 0:03:00]} 7. Bb5+ {[%clk 0:02:57]}  Bd7 {[%clk 0:02:53]} 8. Bxd7+ {[%clk 0:02:55]}  Qxd7 {[%clk 0:02:54]} 9. Nf5 {[%clk 0:02:53]}  h5 {[%clk 0:02:54]} 10. gxh5 {[%clk 0:02:00]}  Nxh5 {[%clk 0:02:42]} 11. Nd5 {[%clk 0:01:55]}  g6 {[%clk 0:02:27]} 12. Nfe3 {[%clk 0:01:31]}  Nc6 {[%clk 0:02:23]} 13. c3 {[%clk 0:01:22]}  Bh6 {[%clk 0:01:55]} 14. Qxh5 {[%clk 0:01:00]}  gxh5 {[%clk 0:01:55]} 15. Nf6+ {[%clk 0:01:00]}  Ke7 {[%clk 0:01:55]} 16. Ned5+ {[%clk 0:00:58]}  Ke6 {[%clk 0:01:55]} 17. Nxd7 {[%clk 0:00:56]}  Kxd7 {[%clk 0:01:56]} 18. Rg1 {[%clk 0:00:50]}  Ne7 {[%clk 0:01:50]} 19. Bxh6 {[%clk 0:00:26]}  Rxh6 {[%clk 0:01:50]} 20. Nxe7 {[%clk 0:00:17]}  Kxe7 {[%clk 0:01:49]} 21. Ke2 {[%clk 0:00:18]}  Rg6 {[%clk 0:01:42]} 22. Rxg6 {[%clk 0:00:18]}  fxg6 {[%clk 0:01:43]} 23. Rg1 {[%clk 0:00:18]}  Kf6 {[%clk 0:01:42]} 24. h4 {[%clk 0:00:18]}  Rf8 {[%clk 0:01:22]} 25. Ke3 {[%clk 0:00:18]}  Kg7 {[%clk 0:01:22]} 26. Rd1 {[%clk 0:00:13]}  Rf6 {[%clk 0:01:22]} 27. c4 {[%clk 0:00:11]}  Kf8 {[%clk 0:01:17]} 28. c5 {[%clk 0:00:09]}  dxc5 {[%clk 0:01:18]} 29. Rd5 {[%clk 0:00:10]}  c4 {[%clk 0:00:42]} 30. Rxe5 {[%clk 0:00:10]}  Rb6 {[%clk 0:00:42]} 31. Rc5 {[%clk 0:00:10]}  Rxb2 {[%clk 0:00:42]} 32. Rxc4 {[%clk 0:00:11]}  Rxa2 {[%clk 0:00:42]} 33. Rc8+ {[%clk 0:00:11]}  Kf7 {[%clk 0:00:43]} 34. Rc7+ {[%clk 0:00:12]}  Ke6 {[%clk 0:00:42]} 35. Rxb7 {[%clk 0:00:13]}  a5 {[%clk 0:00:43]} 36. Rb6+ {[%clk 0:00:11]}  Kf7 {[%clk 0:00:42]} 37. Ra6 {[%clk 0:00:11]}  a4 {[%clk 0:00:38]} 38. f3 {[%clk 0:00:11]}  Ra1 {[%clk 0:00:20]} 39. Kf4 {[%clk 0:00:12]}  a3 {[%clk 0:00:20]} 40. Ke5 {[%clk 0:00:12]}  a2 {[%clk 0:00:20]} 41. Ra7+ {[%clk 0:00:12]}  Kf8 {[%clk 0:00:19]} 42. f4 {[%clk 0:00:12]}  Ke8 {[%clk 0:00:14]} 43. Ke6 {[%clk 0:00:12]}  Kd8 {[%clk 0:00:14]} 44. e5 {[%clk 0:00:11]}  Kc8 {[%clk 0:00:12]} 45. Ra4 {[%clk 0:00:09]}  Kc7 {[%clk 0:00:12]} 46. Kf6 {[%clk 0:00:09]}  Kc6 {[%clk 0:00:10]} 47. e6 {[%clk 0:00:08]}  Kb5 {[%clk 0:00:08]} 48. Ra8 {[%clk 0:00:08]}  g5 {[%clk 0:00:04]} 49. hxg5 {[%clk 0:00:08]}  h4 {[%clk 0:00:04]} 50. e7 {[%clk 0:00:08]}  Re1 {[%clk 0:00:05]} 51. Rxa2 {[%clk 0:00:08]} 1-0


[Site "https://www.chess.com"]

[Event "Titled Tuesday Blitz May 31 Late 2022"]
[White "Sliwicki, Damian"]
[Black "Flynn, Jacob"]
[WhiteFideId "1127128"]
[BlackFideId "2509393"]
[WhiteElo "2125"]
[BlackElo "1896"]
[Result "1-0"]
[Round "10"]
[TimeControl "180+1"]
[Date "2022.06.01"]
[WhiteClock "0:00:20"]
[BlackClock "0:00:02"]

1. e4 {[%clk 0:02:47]}  e5 {[%clk 0:02:58]} 2. Nf3 {[%clk 0:02:46]}  Nc6 {[%clk 0:02:59]} 3. d4 {[%clk 0:02:41]}  exd4 {[%clk 0:02:59]} 4. Nxd4 {[%clk 0:02:30]}  Nf6 {[%clk 0:02:59]} 5. Nc3 {[%clk 0:02:28]}  Bb4 {[%clk 0:02:58]} 6. Nxc6 {[%clk 0:02:28]}  bxc6 {[%clk 0:02:58]} 7. Bd3 {[%clk 0:02:29]}  d5 {[%clk 0:02:58]} 8. exd5 {[%clk 0:02:30]}  O-O {[%clk 0:02:58]} 9. O-O {[%clk 0:02:30]}  Bg4 {[%clk 0:02:59]} 10. f3 {[%clk 0:02:22]}  Bh5 {[%clk 0:02:59]} 11. dxc6 {[%clk 0:02:17]}  Qd4+ {[%clk 0:03:00]} 12. Kh1 {[%clk 0:02:16]}  Bxc3 {[%clk 0:03:01]} 13. bxc3 {[%clk 0:02:16]}  Qxc3 {[%clk 0:03:01]} 14. Rb1 {[%clk 0:02:07]}  Qxc6 {[%clk 0:02:45]} 15. Qe1 {[%clk 0:02:03]}  Rfe8 {[%clk 0:02:43]} 16. Qh4 {[%clk 0:02:03]}  Re6 {[%clk 0:02:06]} 17. Bb2 {[%clk 0:01:51]}  Bg6 {[%clk 0:02:05]} 18. Bc4 {[%clk 0:01:32]}  Rd6 {[%clk 0:01:53]} 19. Be5 {[%clk 0:01:30]}  Rd2 {[%clk 0:01:48]} 20. Bb5 {[%clk 0:01:05]}  Qxc2 {[%clk 0:01:37]} 21. Rb2 {[%clk 0:01:01]}  Qxb2 {[%clk 0:01:16]} 22. Bxb2 {[%clk 0:01:02]}  Rxb2 {[%clk 0:01:17]} 23. Bc6 {[%clk 0:00:59]}  Rd8 {[%clk 0:01:15]} 24. h3 {[%clk 0:00:49]}  h6 {[%clk 0:01:15]} 25. Be4 {[%clk 0:00:42]}  Rdd2 {[%clk 0:01:11]} 26. Rg1 {[%clk 0:00:27]}  Nxe4 {[%clk 0:01:02]} 27. fxe4 {[%clk 0:00:28]}  Rxa2 {[%clk 0:00:58]} 28. e5 {[%clk 0:00:25]}  Re2 {[%clk 0:00:54]} 29. Qc4 {[%clk 0:00:22]}  Be4 {[%clk 0:00:38]} 30. e6 {[%clk 0:00:22]}  Bxg2+ {[%clk 0:00:37]} 31. Rxg2 {[%clk 0:00:22]}  Rxg2 {[%clk 0:00:31]} 32. e7 {[%clk 0:00:22]}  Rh2+ {[%clk 0:00:16]} 33. Kg1 {[%clk 0:00:22]}  Rhg2+ {[%clk 0:00:15]} 34. Kf1 {[%clk 0:00:23]}  Rgf2+ {[%clk 0:00:14]} 35. Ke1 {[%clk 0:00:23]}  Kh7 {[%clk 0:00:03]} 36. e8=Q {[%clk 0:00:20]}  Rh2 {[%clk 0:00:03]} 37. Qce4+ {[%clk 0:00:19]}  f5 {[%clk 0:00:01]} 38. Qxf5+ {[%clk 0:00:19]}  g6 {[%clk 0:00:02]} 39. Qfxg6# {[%clk 0:00:20]} 1-0


[Site "https://www.chess.com"]

[Event "Titled Tuesday Blitz May 31 Late 2022"]
[White "Swiercz, Dariusz"]
[Black "Eljanov, Pavel"]
[WhiteFideId "1126881"]
[BlackFideId "14102951"]
[WhiteElo "2627"]
[BlackElo "2601"]
[Result "1/2-1/2"]
[Round "10"]
[TimeControl "180+1"]
[Date "2022.05.31"]
[WhiteClock "0:00:09"]
[BlackClock "0:00:22"]

1. e4 {[%clk 0:03:00]}  c6 {[%clk 0:02:59]} 2. d4 {[%clk 0:02:58]}  d5 {[%clk 0:03:00]} 3. e5 {[%clk 0:02:59]}  Bf5 {[%clk 0:03:00]} 4. h4 {[%clk 0:02:59]}  h5 {[%clk 0:03:00]} 5. Bd3 {[%clk 0:02:59]}  Bxd3 {[%clk 0:03:01]} 6. Qxd3 {[%clk 0:03:00]}  Qa5+ {[%clk 0:03:01]} 7. Nd2 {[%clk 0:03:00]}  e6 {[%clk 0:03:01]} 8. Nf3 {[%clk 0:03:01]}  Nh6 {[%clk 0:03:01]} 9. O-O {[%clk 0:03:01]}  Nf5 {[%clk 0:03:00]} 10. Nb3 {[%clk 0:03:01]}  Qa6 {[%clk 0:03:01]} 11. Qd1 {[%clk 0:03:02]}  c5 {[%clk 0:03:00]} 12. dxc5 {[%clk 0:02:51]}  Nd7 {[%clk 0:03:00]} 13. Bg5 {[%clk 0:02:30]}  Bxc5 {[%clk 0:02:50]} 14. c3 {[%clk 0:02:26]}  Rc8 {[%clk 0:02:44]} 15. Nbd4 {[%clk 0:02:22]}  Bxd4 {[%clk 0:02:40]} 16. Nxd4 {[%clk 0:02:08]}  Nxd4 {[%clk 0:02:40]} 17. cxd4 {[%clk 0:02:09]}  Qb6 {[%clk 0:02:20]} 18. Be3 {[%clk 0:01:35]}  Nb8 {[%clk 0:02:05]} 19. Rc1 {[%clk 0:01:29]}  Rxc1 {[%clk 0:02:03]} 20. Qxc1 {[%clk 0:01:30]}  Nc6 {[%clk 0:02:03]} 21. Qc3 {[%clk 0:01:21]}  O-O {[%clk 0:02:01]} 22. Rc1 {[%clk 0:01:20]}  Rc8 {[%clk 0:01:39]} 23. Qa3 {[%clk 0:01:20]}  a6 {[%clk 0:01:16]} 24. g3 {[%clk 0:01:19]}  Qd8 {[%clk 0:01:07]} 25. Qb3 {[%clk 0:01:08]}  Na5 {[%clk 0:01:02]} 26. Rxc8 {[%clk 0:00:58]}  Qxc8 {[%clk 0:01:03]} 27. Qd1 {[%clk 0:00:58]}  Nc4 {[%clk 0:00:54]} 28. Bc1 {[%clk 0:00:51]}  g6 {[%clk 0:00:51]} 29. b3 {[%clk 0:00:51]}  Nb6 {[%clk 0:00:51]} 30. Bd2 {[%clk 0:00:46]}  Nd7 {[%clk 0:00:48]} 31. Qc1 {[%clk 0:00:38]}  Qxc1+ {[%clk 0:00:46]} 32. Bxc1 {[%clk 0:00:39]}  Nb8 {[%clk 0:00:46]} 33. Bd2 {[%clk 0:00:36]}  Nc6 {[%clk 0:00:46]} 34. Bc3 {[%clk 0:00:36]}  b5 {[%clk 0:00:45]} 35. Kg2 {[%clk 0:00:33]}  Kf8 {[%clk 0:00:40]} 36. Kf3 {[%clk 0:00:31]}  b4 {[%clk 0:00:37]} 37. Bb2 {[%clk 0:00:31]}  a5 {[%clk 0:00:37]} 38. a4 {[%clk 0:00:19]}  Ne7 {[%clk 0:00:35]} 39. Bc1 {[%clk 0:00:14]}  Nf5 {[%clk 0:00:35]} 40. Be3 {[%clk 0:00:15]}  Ke7 {[%clk 0:00:34]} 41. Ke2 {[%clk 0:00:15]}  Kd7 {[%clk 0:00:33]} 42. Kd3 {[%clk 0:00:15]}  Kc6 {[%clk 0:00:29]} 43. Bf4 {[%clk 0:00:14]}  Kd7 {[%clk 0:00:28]} 44. Bg5 {[%clk 0:00:14]}  Ke8 {[%clk 0:00:25]} 45. Bd2 {[%clk 0:00:14]}  Ne7 {[%clk 0:00:24]} 46. Be1 {[%clk 0:00:14]}  Nc6 {[%clk 0:00:24]} 47. f3 {[%clk 0:00:14]}  Kf8 {[%clk 0:00:23]} 48. Bd2 {[%clk 0:00:14]}  Kg7 {[%clk 0:00:22]} 49. Bg5 {[%clk 0:00:14]}  Kf8 {[%clk 0:00:22]} 50. Bf6 {[%clk 0:00:14]}  Kg8 {[%clk 0:00:23]} 51. g4 {[%clk 0:00:15]}  Kh7 {[%clk 0:00:22]} 52. Ke3 {[%clk 0:00:15]}  Kh6 {[%clk 0:00:22]} 53. Kd3 {[%clk 0:00:15]}  Kh7 {[%clk 0:00:22]} 54. Bg5 {[%clk 0:00:15]}  Kg7 {[%clk 0:00:22]} 55. Bf4 {[%clk 0:00:13]}  Kh7 {[%clk 0:00:22]} 56. Bg5 {[%clk 0:00:13]}  Kg7 {[%clk 0:00:22]} 57. Bf6+ {[%clk 0:00:09]}  Kh7 {[%clk 0:00:22]} 1/2-1/2


[Site "https://www.chess.com"]

[Event "Titled Tuesday Blitz May 31 Late 2022"]
[White "Vasquez Schroeder, Rodrigo"]
[Black "Preotu, Razvan"]
[WhiteFideId "3400042"]
[BlackFideId "2613280"]
[WhiteElo "2567"]
[BlackElo "2407"]
[Result "1-0"]
[Round "10"]
[TimeControl "180+1"]
[Date "2022.05.31"]
[WhiteClock "0:00:10"]
[BlackClock "0:00:02"]

1. e4 {[%clk 0:03:00]}  c5 {[%clk 0:02:54]} 2. Nf3 {[%clk 0:03:00]}  d6 {[%clk 0:02:55]} 3. d4 {[%clk 0:03:01]}  cxd4 {[%clk 0:02:55]} 4. Nxd4 {[%clk 0:03:01]}  Nf6 {[%clk 0:02:56]} 5. Nc3 {[%clk 0:03:02]}  a6 {[%clk 0:02:57]} 6. Bg5 {[%clk 0:03:02]}  e6 {[%clk 0:02:55]} 7. f4 {[%clk 0:03:01]}  Be7 {[%clk 0:02:54]} 8. Qf3 {[%clk 0:03:01]}  Qc7 {[%clk 0:02:54]} 9. O-O-O {[%clk 0:03:01]}  Nbd7 {[%clk 0:02:54]} 10. Bd3 {[%clk 0:03:01]}  b5 {[%clk 0:02:52]} 11. Rhe1 {[%clk 0:03:00]}  Bb7 {[%clk 0:02:52]} 12. Qg3 {[%clk 0:02:54]}  b4 {[%clk 0:02:45]} 13. Nd5 {[%clk 0:02:53]}  exd5 {[%clk 0:02:45]} 14. exd5 {[%clk 0:02:54]}  Kd8 {[%clk 0:02:39]} 15. Nc6+ {[%clk 0:02:52]}  Bxc6 {[%clk 0:02:39]} 16. dxc6 {[%clk 0:02:52]}  Qxc6 {[%clk 0:02:40]} 17. Bh4 {[%clk 0:02:50]}  Rg8 {[%clk 0:01:09]} 18. Bxh7 {[%clk 0:02:47]}  Rc8 {[%clk 0:01:01]} 19. Kb1 {[%clk 0:02:10]}  Nxh7 {[%clk 0:00:56]} 20. Bxe7+ {[%clk 0:01:58]}  Kc7 {[%clk 0:00:54]} 21. Rxd6 {[%clk 0:01:56]}  Qb5 {[%clk 0:00:54]} 22. Red1 {[%clk 0:01:47]}  Nb6 {[%clk 0:00:50]} 23. Qh4 {[%clk 0:01:26]}  Nf6 {[%clk 0:00:45]} 24. Bxf6 {[%clk 0:01:16]}  gxf6 {[%clk 0:00:46]} 25. Qxf6 {[%clk 0:01:16]}  Kb7 {[%clk 0:00:10]} 26. Qxf7+ {[%clk 0:01:12]}  Kb8 {[%clk 0:00:10]} 27. g3 {[%clk 0:01:05]}  Rge8 {[%clk 0:00:09]} 28. b3 {[%clk 0:01:01]}  Re2 {[%clk 0:00:09]} 29. Qg6 {[%clk 0:00:56]}  Kb7 {[%clk 0:00:06]} 30. R6d2 {[%clk 0:00:51]}  Rxd2 {[%clk 0:00:06]} 31. Rxd2 {[%clk 0:00:52]}  Rc7 {[%clk 0:00:04]} 32. Qd3 {[%clk 0:00:49]}  Qc5 {[%clk 0:00:04]} 33. h4 {[%clk 0:00:40]}  a5 {[%clk 0:00:04]} 34. Qf3+ {[%clk 0:00:35]}  Ka7 {[%clk 0:00:04]} 35. h5 {[%clk 0:00:35]}  a4 {[%clk 0:00:04]} 36. h6 {[%clk 0:00:26]}  a3 {[%clk 0:00:05]} 37. Qd3 {[%clk 0:00:26]}  Qg1+ {[%clk 0:00:03]} 38. Rd1 {[%clk 0:00:26]}  Qc5 {[%clk 0:00:04]} 39. Kc1 {[%clk 0:00:17]}  Qf8 {[%clk 0:00:03]} 40. Qd6 {[%clk 0:00:15]}  Qc8 {[%clk 0:00:02]} 41. Qxb4 {[%clk 0:00:12]}  Rxc2+ {[%clk 0:00:02]} 42. Kb1 {[%clk 0:00:13]}  Rb2+ {[%clk 0:00:03]} 43. Ka1 {[%clk 0:00:13]}  Qc2 {[%clk 0:00:03]} 44. Qxa3+ {[%clk 0:00:13]}  Kb7 {[%clk 0:00:03]} 45. Re1 {[%clk 0:00:10]}  Rb1+ {[%clk 0:00:01]} 46. Rxb1 {[%clk 0:00:09]}  Nd5 {[%clk 0:00:02]} 47. Qb2 {[%clk 0:00:09]}  Qd3 {[%clk 0:00:02]} 48. Rc1 {[%clk 0:00:09]}  Nb4 {[%clk 0:00:02]} 49. Qc3 {[%clk 0:00:10]} 1-0


[Site "https://www.chess.com"]

[Event "Titled Tuesday Blitz May 31 Late 2022"]
[White "hakki1"]
[Black "Papp, Levente"]
[BlackFideId "751243"]
[WhiteElo "2437"]
[BlackElo "2308"]
[Result "0-1"]
[Round "10"]
[TimeControl "180+1"]
[Date "2022.06.01"]
[WhiteClock "0:00:07"]
[BlackClock "0:00:20"]

1. c4 {[%clk 0:03:00]}  Nf6 {[%clk 0:02:58]} 2. Nc3 {[%clk 0:03:00]}  e6 {[%clk 0:02:57]} 3. Nf3 {[%clk 0:03:00]}  d5 {[%clk 0:02:56]} 4. d4 {[%clk 0:02:59]}  Bb4 {[%clk 0:02:54]} 5. cxd5 {[%clk 0:02:58]}  exd5 {[%clk 0:02:52]} 6. Bg5 {[%clk 0:02:57]}  O-O {[%clk 0:02:49]} 7. e3 {[%clk 0:02:56]}  c5 {[%clk 0:02:46]} 8. Bd3 {[%clk 0:02:34]}  h6 {[%clk 0:02:27]} 9. Bxf6 {[%clk 0:02:33]}  Qxf6 {[%clk 0:02:28]} 10. O-O {[%clk 0:02:32]}  Bxc3 {[%clk 0:02:22]} 11. bxc3 {[%clk 0:02:32]}  Bg4 {[%clk 0:02:16]} 12. Be2 {[%clk 0:02:31]}  Nc6 {[%clk 0:02:04]} 13. Rb1 {[%clk 0:02:31]}  Rab8 {[%clk 0:01:58]} 14. dxc5 {[%clk 0:02:17]}  Qxc3 {[%clk 0:01:57]} 15. Qxd5 {[%clk 0:02:16]}  Rfd8 {[%clk 0:01:54]} 16. Qc4 {[%clk 0:02:15]}  Qxc4 {[%clk 0:01:44]} 17. Bxc4 {[%clk 0:02:15]}  Bxf3 {[%clk 0:01:45]} 18. gxf3 {[%clk 0:02:14]}  Ne5 {[%clk 0:01:46]} 19. Be2 {[%clk 0:01:51]}  Rd2 {[%clk 0:01:46]} 20. Rfe1 {[%clk 0:01:51]}  Rxa2 {[%clk 0:01:46]} 21. f4 {[%clk 0:01:52]}  Nd7 {[%clk 0:01:28]} 22. c6 {[%clk 0:00:54]}  bxc6 {[%clk 0:01:27]} 23. Rxb8+ {[%clk 0:00:52]}  Nxb8 {[%clk 0:01:28]} 24. Rb1 {[%clk 0:00:51]}  Nd7 {[%clk 0:01:10]} 25. Bf3 {[%clk 0:00:50]}  c5 {[%clk 0:00:57]} 26. Rb7 {[%clk 0:00:49]}  Nb6 {[%clk 0:00:57]} 27. Rc7 {[%clk 0:00:41]}  c4 {[%clk 0:00:55]} 28. h4 {[%clk 0:00:38]}  g6 {[%clk 0:00:48]} 29. h5 {[%clk 0:00:37]}  Kg7 {[%clk 0:00:40]} 30. hxg6 {[%clk 0:00:35]}  Kxg6 {[%clk 0:00:41]} 31. Be4+ {[%clk 0:00:35]}  Kf6 {[%clk 0:00:40]} 32. Bf3 {[%clk 0:00:32]}  Ra3 {[%clk 0:00:31]} 33. Bh5 {[%clk 0:00:30]}  c3 {[%clk 0:00:27]} 34. Rxf7+ {[%clk 0:00:24]}  Ke6 {[%clk 0:00:27]} 35. Rc7 {[%clk 0:00:24]}  Kd6 {[%clk 0:00:24]} 36. Rh7 {[%clk 0:00:12]}  c2 {[%clk 0:00:23]} 37. Rxh6+ {[%clk 0:00:13]}  Kc7 {[%clk 0:00:20]} 38. Rh7+ {[%clk 0:00:07]}  Nd7 {[%clk 0:00:20]} 0-1


[Site "https://www.chess.com"]

[Event "Titled Tuesday Blitz May 31 Late 2022"]
[White "Avazkhonov, Alikhon"]
[Black "Tregubov, Pavel V."]
[WhiteFideId "14208504"]
[BlackFideId "4115341"]
[WhiteElo "1739"]
[BlackElo "2341"]
[Result "0-1"]
[Round "11"]
[TimeControl "180+1"]
[Date "2022.05.31"]
[WhiteClock "0:00:11"]
[BlackClock "0:01:35"]

1. e4 {[%clk 0:03:00]}  e5 {[%clk 0:02:59]} 2. Nf3 {[%clk 0:03:00]}  Nf6 {[%clk 0:02:59]} 3. Nxe5 {[%clk 0:03:00]}  d6 {[%clk 0:02:59]} 4. Nf3 {[%clk 0:03:00]}  Nxe4 {[%clk 0:03:00]} 5. Nc3 {[%clk 0:03:01]}  Nf6 {[%clk 0:02:59]} 6. d4 {[%clk 0:02:55]}  Be7 {[%clk 0:02:59]} 7. h3 {[%clk 0:02:54]}  O-O {[%clk 0:03:00]} 8. Be3 {[%clk 0:02:54]}  d5 {[%clk 0:02:56]} 9. Bd3 {[%clk 0:02:54]}  c6 {[%clk 0:02:56]} 10. O-O {[%clk 0:02:52]}  Re8 {[%clk 0:02:56]} 11. Ne5 {[%clk 0:02:50]}  Nbd7 {[%clk 0:02:56]} 12. f4 {[%clk 0:02:49]}  Bb4 {[%clk 0:02:55]} 13. Ne2 {[%clk 0:02:49]}  Ne4 {[%clk 0:02:53]} 14. c3 {[%clk 0:02:48]}  Bf8 {[%clk 0:02:53]} 15. Bxe4 {[%clk 0:02:28]}  dxe4 {[%clk 0:02:52]} 16. Qb3 {[%clk 0:02:29]}  Qe7 {[%clk 0:02:42]} 17. Ng3 {[%clk 0:02:20]}  Nf6 {[%clk 0:02:42]} 18. Qc2 {[%clk 0:02:20]}  Nd5 {[%clk 0:02:40]} 19. Rae1 {[%clk 0:02:12]}  f6 {[%clk 0:02:39]} 20. Ng4 {[%clk 0:01:11]}  Qc7 {[%clk 0:02:34]} 21. Bc1 {[%clk 0:00:54]}  e3 {[%clk 0:02:06]} 22. Nxe3 {[%clk 0:00:22]}  Nxf4 {[%clk 0:02:06]} 23. Nd5 {[%clk 0:00:16]}  Nxd5 {[%clk 0:01:43]} 24. Rxe8 {[%clk 0:00:15]}  Qxg3 {[%clk 0:01:44]} 25. c4 {[%clk 0:00:14]}  Nc7 {[%clk 0:01:36]} 26. Qe4 {[%clk 0:00:13]}  Nxe8 {[%clk 0:01:34]} 27. Qxe8 {[%clk 0:00:11]}  Bxh3 {[%clk 0:01:35]} 0-1


[Site "https://www.chess.com"]